fUST/lending_fUST_20250513
["ID","MTS","AMOUNT","RATE_DAILY","PERIOD"]
[360866601,1747087640564,-320.0,0.00013655,2]
[360866602,1747087640584,-35.44361802,0.00013655,2]
[360866603,1747087641089,-284.55638198,0.00013655,2]
[360866604,1747087641111,-320.0,0.00013655,2]
[360866605,1747087641132,-320.0,0.00013655,2]
[360866606,1747087641152,-320.0,0.00013655,2]
[360866607,1747087641173,-320.0,0.00013655,2]
[360866608,1747087641195,-320.0,0.00013655,2]
[360866609,1747087641215,-320.0,0.00013655,2]
[360866610,1747087641237,-120.97005123,0.00013655,2]
[360866611,1747087757247,-152.00844339,0.00011999,2]
[360866612,1747087757820,-152.00844339,0.00011999,2]
[360866613,1747087763257,-229.0914388,0.00011999,2]
[360866614,1747087766417,-155.48722296,0.00011999,2]
[360866615,1747087773108,-276.9785367,0.00011999,2]
[360866633,1747087832333,-34.42591476,0.00011999,2]
[360866634,1747087832343,-300.0,0.00013654,2]
[360866635,1747087832354,-173.0,0.00013654,2]
[360866636,1747087832364,-300.0,0.00013654,2]
[360866637,1747087832374,-1200.0,0.00013654,2]
[360866638,1747087832384,-300.0,0.00013654,2]
[360866640,1747087832394,-199.02994877,0.00013655,2]
[360866641,1747087832403,-320.0,0.00013655,2]
[360866642,1747087832413,-320.0,0.00013655,2]
[360866644,1747087832564,-320.0,0.00013655,2]
[360866645,1747087832574,-320.0,0.00013655,2]
[360866646,1747087832584,-320.0,0.00013655,2]
[360866647,1747087832593,-320.0,0.00013655,2]
[360866648,1747087832602,-320.0,0.00013655,2]
[360866649,1747087832612,-225.15507053,0.00013655,2]
[360866650,1747087832622,-305.38796,0.00013699,2]
[360866651,1747087832631,-1154.0,0.00013879,2]
[360866652,1747087832641,-10051.81502715,0.00013879,2]
[360866653,1747087832651,-205.222697,0.00013921,2]
[360866654,1747087832660,-3000.0,0.00013999,7]
[360866655,1747087832669,-635.0,0.000141,2]
[360866656,1747087832678,-546.0,0.00014246,2]
[360866657,1747087832688,-706.0,0.00014246,2]
[360866658,1747087832697,-2239.0,0.00014246,2]
[360866659,1747087832707,-151.353756,0.00014302,3]
[360866660,1747087832717,-734.32,0.00014569,2]
[360866661,1747087832727,-151.353756,0.00014599,5]
[360866662,1747087832736,-151.353756,0.000146,3]
[360866663,1747087832746,-151.353756,0.000146,2]
[360866664,1747087832755,-152.0,0.00014698,2]
[360866665,1747087832764,-721.79953594,0.000147,2]
[360866666,1747087832774,-151.0,0.0001474,2]
[360866667,1747087832783,-207.4,0.0001474,2]
[360866668,1747087832793,-9868.7223024,0.00014745,2]
[360866669,1747087832802,-230.868,0.00014748,2]
[360866670,1747087832811,-500.0,0.00014748,2]
[360866671,1747087832821,-257.599269,0.00014748,2]
[360866672,1747087832831,-500.0,0.00014748,2]
[360866673,1747087832840,-503.59716031,0.00014748,2]
[360866674,1747087832851,-327.90137565,0.00014748,2]
[360866675,1747087832862,-35303.52925341,0.00014749,2]
[360866676,1747087832872,-282693.72008345,0.00014749,2]
[360866677,1747087832882,-1844.9376224,0.00014823,2]
[360866678,1747087832891,-1082.11404465,0.00014832,2]
[360866679,1747087832900,-500.0,0.00014873,2]
[360866680,1747087832909,-500.0,0.00014873,2]
[360866681,1747087832919,-500.0,0.00014873,2]
[360866682,1747087832928,-209.66437278,0.00014873,2]
[360866683,1747087832938,-587.42499218,0.00014873,2]
[360866684,1747087832947,-168.25149322,0.00014873,2]
[360866685,1747087832957,-161.06590307,0.00014873,2]
[360866686,1747087832966,-500.0,0.00014873,2]
[360866687,1747087832976,-500.55177401,0.00014873,2]
[360866688,1747087832986,-500.0,0.00014873,2]
[360866689,1747087832995,-500.0,0.00014873,2]
[360866690,1747087833004,-500.0,0.00014873,2]
[360866691,1747087833014,-500.0,0.00014873,2]
[360866692,1747087833023,-501.88932051,0.00014873,2]
[360866693,1747087833033,-500.0,0.00014873,2]
[360866694,1747087833043,-500.0,0.00014873,2]
[360866695,1747087833053,-500.0,0.00014873,2]
[360866696,1747087833062,-446.14574839,0.00014873,2]
[360866697,1747087833072,-500.0,0.00014873,2]
[360866698,1747087833081,-608.02682271,0.00014873,2]
[360866699,1747087833091,-500.0,0.00014873,2]
[360866700,1747087833100,-500.0,0.00014873,2]
[360866701,1747087833109,-500.0,0.00014873,2]
[360866702,1747087833118,-500.0,0.00014873,2]
[360866703,1747087833127,-206.21698277,0.00014874,2]
[360866704,1747087833137,-153.0,0.00014877,2]
[360866705,1747087833147,-155.0,0.00014889,2]
[360866706,1747087833156,-151.0,0.00014889,2]
[360866707,1747087833166,-151.0,0.00014889,2]
[360866708,1747087833175,-151.0,0.00014889,2]
[360866709,1747087833184,-151.0,0.00014889,2]
[360866710,1747087833194,-181.2142947,0.00014889,2]
[360866711,1747087833204,-156.687773,0.00014897,5]
[360866712,1747087833214,-500.0,0.00014897,2]
[360866713,1747087833223,-68627.42271084,0.00014898,2]
[360866714,1747087833232,-15675.21533617,0.00014898,3]
[360866715,1747087833241,-212.17074216,0.00014898,3]
[360866716,1747087833251,-1970881.38521224,0.00014898,2]
[360866734,1747087838255,-404.0,0.00014122,2]
[360866735,1747087838265,-226227.71900687,0.00014898,2]
[360866741,1747087838559,-258.39182591,0.00014898,2]
[360866742,1747087839627,-2159.70318038,0.00014898,2]
[360866743,1747087839639,-1829.84948417,0.00014898,2]
[360866744,1747087839651,-2207.55940084,0.00014898,2]
[360866751,1747087842348,-10602.49039394,0.00014898,2]
[360866775,1747087843676,-14999.82,0.00014898,2]
[360866783,1747087846396,-351.59094771,0.00014798,2]
[360866786,1747088661450,-283.46536939,0.00011534,2]
[360866787,1747088667413,-184.15549261,0.00011534,2]
[360866788,1747088682632,-163.84450739,0.00011418,2]
[360866789,1747088697412,-119.620862,0.00011418,2]
[360866790,1747088697434,-80.379138,0.00011533,2]
[360866791,1747088707370,-300.0,0.00011532,2]
[360866792,1747088707394,-300.0,0.00011532,2]
[360866793,1747088707418,-123.2851595,0.00011533,2]
[360866794,1747088707456,-500.0,0.00011533,2]
[360866795,1747088707508,-173.52248271,0.00011533,2]
[360866796,1747088707541,-500.0,0.00011533,2]
[360866797,1747088707577,-377.98237834,0.00011533,2]
[360866798,1747088707608,-500.0,0.00011533,2]
[360866799,1747088707659,-500.0,0.00011533,2]
[360866800,1747088707692,-500.0,0.00011533,2]
[360866801,1747088707717,-192.7349486,0.00011533,2]
[360866802,1747088707770,-500.0,0.00011533,2]
[360866803,1747088707797,-500.0,0.00011533,2]
[360866804,1747088707824,-500.0,0.00011533,2]
[360866805,1747088707850,-500.0,0.00011533,2]
[360866806,1747088707876,-500.0,0.00011533,2]
[360866807,1747088707899,-500.0,0.00011533,2]
[360866808,1747088707922,-500.0,0.00011533,2]
[360866809,1747088707947,-500.0,0.00011533,2]
[360866810,1747088707969,-500.0,0.00011533,2]
[360866811,1747088707991,-500.0,0.00011533,2]
[360866812,1747088708013,-500.0,0.00011533,2]
[360866813,1747088708036,-500.0,0.00011533,2]
[360866814,1747088708058,-500.0,0.00011533,2]
[360866815,1747088708082,-500.0,0.00011533,2]
[360866816,1747088708275,-33766.64795276,0.00011533,2]
[360866817,1747088708297,-14000.82707809,0.00011534,2]
[360866818,1747088713653,-163.33699287,0.00011532,2]
[360866819,1747088727421,-332.44202857,0.00011532,2]
[360866823,1747088743106,-167.55797143,0.00011532,2]
[360866824,1747088757408,-360.8919552,0.00011532,2]
[360866825,1747088773467,-175.77105193,0.00011532,2]
[360866826,1747088773491,-99.4135916,0.00011532,2]
[360866827,1747088779379,-200.5864084,0.00011532,2]
[360866828,1747088779413,-500.0,0.00011533,2]
[360866829,1747088779447,-500.0,0.00011533,2]
[360866830,1747088779483,-507.87857713,0.00011533,2]
[360866831,1747088779522,-500.0,0.00011533,2]
[360866832,1747088779562,-500.0,0.00011533,2]
[360866833,1747088779600,-500.0,0.00011533,2]
[360866834,1747088779636,-500.0,0.00011533,2]
[360866835,1747088779673,-500.0,0.00011533,2]
[360866836,1747088779711,-500.0,0.00011533,2]
[360866837,1747088779749,-332.44202857,0.00011533,2]
[360866838,1747088779786,-167.55797143,0.00011533,2]
[360866839,1747088779821,-360.8919552,0.00011533,2]
[360866840,1747088779855,-270.0,0.00011533,2]
[360866841,1747088780065,-10431.55205991,0.00011534,2]
[360866842,1747088780098,-151.0,0.00012321,2]
[360866843,1747088780120,-352.51801222,0.00012328,2]
[360866844,1747088780143,-530.3194883,0.00012328,2]
[360866845,1747088780165,-269.220333,0.00012328,2]
[360866846,1747088780187,-9615.03316584,0.00012329,2]
[360866854,1747088953166,-500.0,0.00012328,2]
[360866855,1747088953209,-620.82807272,0.00012328,2]
[360866856,1747088953245,-500.0,0.00012328,2]
[360866857,1747088953286,-300.0,0.00012328,2]
[360866858,1747088953321,-21686.92,0.00012329,2]
[360866859,1747088953352,-18072.44,0.00012329,2]
[360866860,1747088953389,-15060.36,0.00012329,2]
[360866861,1747088953420,-12550.3,0.00012329,2]
[360866862,1747088953451,-10458.59,0.00012329,2]
[360866863,1747088953483,-8715.49,0.00012329,2]
[360866864,1747088953515,-7262.91,0.00012329,2]
[360866865,1747088953546,-6052.42,0.00012329,2]
[360866866,1747088953578,-5043.68,0.00012329,2]
[360866867,1747088953611,-4203.07,0.00012329,2]
[360866868,1747088953646,-3502.56,0.00012329,2]
[360866869,1747088953680,-2918.8,0.00012329,2]
[360866870,1747088953714,-11265.27612053,0.000125,2]
[360866871,1747088953746,-1572.0241533,0.00012576,2]
[360866872,1747088953778,-250.0,0.00012663,2]
[360866873,1747088953812,-13651.92062377,0.00012685,2]
[360866874,1747088971139,-203.77315077,0.00012329,2]
[360866909,1747089032724,-151.0,0.00012321,2]
[360866910,1747089032734,-292.0,0.00012328,2]
[360866911,1747089032743,-1200.0,0.00012328,2]
[360866912,1747089032753,-2228.55684923,0.00012329,2]
[360866913,1747089032762,-2026.94,0.00012329,2]
[360866914,1747089032772,-1689.12,0.00012329,2]
[360866915,1747089032781,-1407.6,0.00012329,2]
[360866916,1747089032790,-1173.0,0.00012329,2]
[360866917,1747089032799,-977.5,0.00012329,2]
[360866918,1747089032808,-814.58,0.00012329,2]
[360866919,1747089032818,-171.97566387,0.00012679,2]
[360866920,1747089032827,-13536.78411184,0.00012685,2]
[360866921,1747089032836,-589.71,0.00013,2]
[360866922,1747089032845,-500.0,0.00013,2]
[360866923,1747089032855,-500.0,0.00013,2]
[360866924,1747089032864,-199.91748047,0.00013103,2]
[360866925,1747089032873,-155.0,0.00013103,2]
[360866926,1747089032882,-207.4,0.00013103,2]
[360866927,1747089032891,-1680.0,0.00013561,2]
[360866928,1747089032901,-868.90580004,0.00013599,2]
[360866929,1747089032910,-5625.6137163,0.00013599,2]
[360866930,1747089032920,-200.0,0.00013682,2]
[360866931,1747089032929,-200.0,0.00013682,2]
[360866932,1747089032939,-151.0,0.0001369,2]
[360866933,1747089032948,-170.43,0.00013699,2]
[360866934,1747089032958,-170.43,0.00013699,2]
[360866935,1747089032968,-170.43,0.00013699,2]
[360866936,1747089032977,-170.43,0.00013699,2]
[360866937,1747089032986,-170.43,0.00013699,2]
[360866938,1747089032996,-170.46371748,0.00013699,2]
[360866939,1747089033006,-4029.801971,0.00013699,2]
[360866940,1747089033015,-2841.6666866,0.00013699,2]
[360866941,1747089033025,-62668.1386448,0.00013699,2]
[360866942,1747089033034,-3084.9991369,0.00013699,2]
[360866943,1747089033044,-579.53096295,0.00013699,2]
[360866944,1747089033054,-500.0,0.00013699,2]
[360866945,1747089033064,-500.0,0.00013699,2]
[360866946,1747089033075,-500.0,0.00013699,2]
[360866947,1747089033085,-213.08647737,0.00013699,2]
[360866948,1747089033096,-500.0,0.00013699,2]
[360866949,1747089033106,-500.0,0.00013699,2]
[360866950,1747089033117,-500.0,0.00013699,2]
[360866951,1747089033127,-500.0,0.00013699,2]
[360866952,1747089033137,-200.0,0.00013821,2]
[360866953,1747089033147,-200.0,0.00013821,2]
[360866954,1747089033158,-152.0,0.00013865,2]
[360866955,1747089033170,-868.9058,0.00013899,2]
[360866956,1747089033180,-500.0,0.00013993,2]
[360866957,1747089033190,-1337.72193834,0.00014,2]
[360866958,1747089033200,-26138.07353563,0.00014,7]
[360866959,1747089033211,-154376.57209699,0.00014132,2]
[360866960,1747089033221,-193.0,0.00014177,2]
[360866961,1747089033231,-153.0,0.00014178,2]
[360866962,1747089033249,-153.0,0.00014178,2]
[360866963,1747089033268,-868.9058,0.00014199,2]
[360866964,1747089033286,-706.0,0.00014246,2]
[360866965,1747089033305,-2237.0,0.00014246,2]
[360866966,1747089033326,-2721.3,0.00014246,2]
[360866967,1747089033345,-2721.3,0.00014246,2]
[360866968,1747089033365,-2721.3,0.00014246,2]
[360866969,1747089033381,-500.0,0.00014246,2]
[360866970,1747089033396,-250.968229,0.00014278,2]
[360866971,1747089033418,-153.0,0.00014278,2]
[360866972,1747089033439,-635.0,0.000143,2]
[360866973,1747089033458,-315.8774727,0.00014452,2]
[360866974,1747089033472,-215.0738,0.00014472,2]
[360866975,1747089033491,-245.0,0.00014496,2]
[360866976,1747089033506,-868.9058,0.00014498,2]
[360866977,1747089033524,-250.135,0.000145,2]
[360866978,1747089033537,-500.0,0.0001452,2]
[360866979,1747089033557,-5625.61371628,0.00014577,2]
[360866980,1747089033574,-151.0,0.000146,2]
[360866981,1747089033589,-868.49162184,0.00014699,2]
[360866982,1747089033604,-3580.15828887,0.0001478,2]
[360866983,1747089033619,-1200.0,0.0001478,2]
[360866984,1747089033635,-500.0,0.00014794,2]
[360866985,1747089033650,-153.0,0.00014795,2]
[360866986,1747089033671,-153.0,0.00014795,2]
[360866987,1747089033687,-153.0,0.00014795,2]
[360866988,1747089033703,-153.0,0.00014795,2]
[360866989,1747089033720,-868.9058,0.00014798,2]
[360866990,1747089033736,-165.0,0.00014822,2]
[360866991,1747089033752,-845.7031815,0.00014823,2]
[360866992,1747089033768,-12983.38008822,0.00014868,2]
[360866993,1747089033783,-500.0,0.00014873,2]
[360866994,1747089033799,-500.0,0.00014873,2]
[360866995,1747089033814,-500.0,0.00014873,2]
[360866996,1747089033828,-1000.0,0.00014873,2]
[360866997,1747089033843,-500.0,0.00014873,2]
[360866998,1747089033857,-500.0,0.00014873,2]
[360866999,1747089033872,-500.0,0.00014873,2]
[360867000,1747089033887,-500.0,0.00014873,2]
[360867001,1747089033903,-500.0,0.00014873,2]
[360867002,1747089033918,-500.0,0.00014873,2]
[360867003,1747089033933,-500.0,0.00014873,2]
[360867004,1747089033949,-500.0,0.00014873,2]
[360867005,1747089033964,-500.0,0.00014873,2]
[360867006,1747089033979,-501.0244957,0.00014873,2]
[360867007,1747089033994,-410.17326273,0.00014873,2]
[360867008,1747089034009,-500.0,0.00014873,2]
[360867009,1747089034025,-505.25690834,0.00014873,2]
[360867010,1747089034040,-552.38520618,0.00014873,2]
[360867011,1747089034056,-500.0,0.00014873,2]
[360867012,1747089034071,-500.0,0.00014873,2]
[360867013,1747089034087,-500.0,0.00014873,2]
[360867014,1747089034102,-500.0,0.00014873,2]
[360867015,1747089034118,-500.0,0.00014873,2]
[360867016,1747089034134,-166.03840249,0.00014873,2]
[360867017,1747089034148,-500.0,0.00014873,2]
[360867018,1747089034164,-500.0,0.00014873,2]
[360867019,1747089034180,-500.0,0.00014873,2]
[360867020,1747089034196,-500.0,0.00014873,2]
[360867021,1747089034212,-500.0,0.00014873,2]
[360867022,1747089034227,-500.0,0.00014873,2]
[360867023,1747089034244,-500.0,0.00014873,2]
[360867024,1747089034259,-500.0,0.00014873,2]
[360867025,1747089034274,-500.0,0.00014873,2]
[360867026,1747089034290,-500.0,0.00014873,2]
[360867027,1747089034305,-500.0,0.00014873,2]
[360867028,1747089034320,-500.0,0.00014873,2]
[360867029,1747089034336,-160.0,0.00014897,2]
[360867030,1747089034351,-500.0,0.00014897,2]
[360867031,1747089034366,-160.0,0.00014897,2]
[360867032,1747089034381,-160.0,0.00014897,2]
[360867033,1747089034396,-160.0,0.00014897,2]
[360867034,1747089034410,-160.0,0.00014897,2]
[360867035,1747089034426,-34313.71135542,0.00014898,2]
[360867036,1747089034442,-7837.60766808,0.00014898,3]
[360867037,1747089034457,-2574415.16172868,0.00014898,2]
[360867038,1747089034767,-66480.67608824,0.00014898,2]
[360867068,1747089038478,-678.82,0.00012329,2]
[360867069,1747089038489,-500.0,0.00013,2]
[360867070,1747089038498,-500.0,0.00014,2]
[360867071,1747089038508,-3145.44441828,0.00014798,2]
[360867072,1747089038517,-7884.44522052,0.00014898,2]
[360867073,1747089038563,-270.13541551,0.00014898,2]
[360867084,1747089040825,-546.0,0.00014246,2]
[360867085,1747089040835,-500.0,0.00014274,2]
[360867086,1747089040845,-500.0,0.00014548,2]
[360867087,1747089040855,-500.0,0.00014822,2]
[360867088,1747089040865,-50209.87774332,0.00014898,2]
[360867089,1747089040874,-151.0,0.00014898,2]
[360867090,1747089041038,-794.781,0.00014898,2]
[360867091,1747089041048,-276.599643,0.00014898,2]
[360867092,1747089041058,-156.445889,0.00014898,2]
[360867093,1747089041067,-500.0,0.00014898,2]
[360867094,1747089041076,-500.0,0.00014898,2]
[360867095,1747089041086,-500.0,0.00014898,2]
[360867096,1747089041095,-500.0,0.00014898,2]
[360867097,1747089041105,-500.0,0.00014898,2]
[360867098,1747089041115,-500.0,0.00014898,2]
[360867099,1747089041124,-500.0,0.00014898,2]
[360867100,1747089041134,-500.0,0.00014898,2]
[360867101,1747089041143,-266.0,0.00014898,2]
[360867102,1747089041153,-156.687773,0.00014898,3]
[360867103,1747089041162,-156.687773,0.00014898,3]
[360867104,1747089041173,-156.687773,0.00014898,2]
[360867105,1747089041183,-158.075313,0.00014898,3]
[360867106,1747089041192,-175.972559,0.00014898,3]
[360867107,1747089041202,-203.44388447,0.00014898,2]
[360867108,1747089041211,-543.0,0.00014898,2]
[360867109,1747089041221,-543.0,0.00014898,2]
[360867110,1747089041231,-543.0,0.00014898,2]
[360867111,1747089041240,-543.0,0.00014898,2]
[360867112,1747089041250,-543.0,0.00014898,2]
[360867113,1747089041259,-543.0,0.00014898,2]
[360867114,1747089041269,-342.0,0.00014898,2]
[360867115,1747089041279,-500.0,0.00014898,2]
[360867116,1747089041288,-500.0,0.00014898,2]
[360867117,1747089041297,-194.0,0.000149,2]
[360867118,1747089041307,-3112.7,0.000149,2]
[360867119,1747089041316,-3112.7,0.000149,2]
[360867120,1747089041325,-3112.7,0.000149,2]
[360867121,1747089041335,-3112.8,0.000149,2]
[360867122,1747089041345,-2745.6,0.000149,2]
[360867123,1747089041354,-2745.6,0.000149,2]
[360867124,1747089041364,-2745.6,0.000149,2]
[360867125,1747089041374,-2745.6,0.000149,2]
[360867126,1747089041383,-2745.6,0.000149,2]
[360867127,1747089041392,-2745.6,0.000149,2]
[360867128,1747089041402,-2745.6,0.000149,2]
[360867129,1747089041411,-2745.6,0.000149,2]
[360867130,1747089041421,-2745.6,0.000149,2]
[360867131,1747089041431,-2745.6,0.000149,2]
[360867132,1747089041440,-2745.6,0.000149,2]
[360867133,1747089041449,-2745.6,0.000149,2]
[360867134,1747089041459,-2745.6,0.000149,2]
[360867135,1747089041469,-2745.6,0.000149,2]
[360867136,1747089041478,-2745.6,0.000149,2]
[360867137,1747089041488,-2745.5,0.000149,2]
[360867138,1747089041497,-1862.07,0.000149,2]
[360867139,1747089041507,-151.0,0.000149,2]
[360867140,1747089041516,-151.0,0.000149,2]
[360867141,1747089041525,-151.0,0.000149,2]
[360867142,1747089041535,-151.0,0.000149,2]
[360867143,1747089041546,-151.0,0.000149,2]
[360867144,1747089041555,-151.0,0.000149,2]
[360867145,1747089041565,-166.13847834,0.000149,2]
[360867146,1747089041578,-574.61496224,0.000149,2]
[360867147,1747089041601,-2226.8154,0.000149,2]
[360867148,1747089041613,-2226.8154,0.000149,2]
[360867149,1747089041623,-9476.65273448,0.000149,2]
[360867150,1747089041633,-3156.22428762,0.000149,2]
[360867151,1747089041648,-6320.42844666,0.000149,2]
[360867152,1747089041661,-897.13980801,0.000149,2]
[360867153,1747089041678,-1365.28998582,0.000149,2]
[360867154,1747089041690,-507.81705216,0.000149,2]
[360867155,1747089041703,-810.27166094,0.000149,2]
[360867158,1747089041849,-438.49886267,0.000149,2]
[360867159,1747089041861,-591.0,0.000149,2]
[360867181,1747089044397,-500.0,0.00013,2]
[360867183,1747089044407,-4866.63536468,0.000149,2]
[360867185,1747089044417,-3634.07648497,0.000149,2]
[360867187,1747089044429,-4174.70051838,0.000149,2]
[360867193,1747089044480,-468.942,0.000149,2]
[360867196,1747089044492,-568.80478285,0.000149,2]
[360867202,1747089044667,-630.12894808,0.000149,2]
[360867203,1747089044677,-556.52223788,0.00014917,2]
[360867204,1747089044689,-421.47776212,0.00014917,2]
[360867205,1747089044699,-1668.97019674,0.00015,3]
[360867206,1747089044712,-1644.67106572,0.00015,3]
[360867276,1747089046586,-13686.35873754,0.00015,3]
[360867279,1747089046602,-500.0,0.00015,2]
[360867281,1747089046618,-25205.98600481,0.00015,2]
[360867355,1747089047318,-565.68,0.00012329,2]
[360867357,1747089047332,-3281.81412051,0.00015,2]
[360868787,1747089168851,-500.0,0.00012227,2]
[360868788,1747089168876,-396.16882849,0.00012227,2]
[360868789,1747089168898,-2385.83117151,0.00012228,2]
[360868793,1747089845638,-285.10504658,0.00011253,2]
[360868794,1747089852430,-278.02171983,0.00011253,2]
[360868796,1747089867388,-342.72084089,0.00011253,2]
[360868797,1747089882416,-167.55797143,0.00011252,2]
[360868798,1747089897983,-292.48014679,0.00011252,2]
[360868799,1747089913661,-300.0,0.00011251,2]
[360868800,1747089913684,-138.96188178,0.00011251,2]
[360868801,1747089927485,-161.03811822,0.00011251,2]
[360868802,1747089927512,-210.47024841,0.00011251,2]
[360868803,1747089942442,-89.52975159,0.00011251,2]
[360868804,1747089942466,-211.05800065,0.00011251,2]
[360868805,1747089959108,-175.44859282,0.00011251,2]
[360868806,1747089972419,-421.5458782,0.00011251,2]
[360868807,1747089987660,-164.83253891,0.00011251,2]
[360868808,1747090002445,-227.11498942,0.00011251,2]
[360868809,1747090002469,-156.19470065,0.00011251,2]
[360868810,1747090017566,-143.80529935,0.00011251,2]
[360868811,1747090017589,-53.77692391,0.00011251,2]
[360868812,1747090032578,-300.0,0.00011251,2]
[360868813,1747090032608,-50.56000572,0.00011251,2]
[360868814,1747090047464,-323.5571536,0.00011251,2]
[360868815,1747090051361,-148.54670698,0.00011251,2]
[360868816,1747090051382,-2499.79676391,0.00011252,2]
[360868817,1747090062458,-248.14222898,0.00011252,2]
[360868818,1747090077432,-195.21107159,0.00011252,2]
[360868819,1747090092423,-294.14217313,0.00011138,2]
[360868820,1747090107619,-144.05961784,0.00011138,2]
[360868821,1747090107641,-42.79820903,0.00011251,2]
[360868822,1747090122403,-158.54802833,0.00011138,2]
[360868829,1747090137413,-160.38171384,0.00011138,2]
[360868830,1747090152144,-4440.99172168,0.00011138,2]
[360868831,1747090152170,-300.0,0.0001125,2]
[360868832,1747090152192,-500.0,0.00011251,2]
[360868833,1747090152215,-500.0,0.00011251,2]
[360868834,1747090152239,-500.0,0.00011251,2]
[360868835,1747090152265,-500.0,0.00011251,2]
[360868836,1747090152288,-500.0,0.00011251,2]
[360868837,1747090152310,-500.0,0.00011251,2]
[360868838,1747090152334,-500.0,0.00011251,2]
[360868839,1747090152356,-500.0,0.00011251,2]
[360868840,1747090152380,-500.0,0.00011251,2]
[360868841,1747090152403,-500.0,0.00011251,2]
[360868842,1747090152425,-500.0,0.00011251,2]
[360868843,1747090152448,-500.0,0.00011251,2]
[360868844,1747090152471,-500.0,0.00011251,2]
[360868845,1747090152491,-455.04471769,0.00011251,2]
[360868846,1747090152514,-500.0,0.00011251,2]
[360868847,1747090152537,-500.0,0.00011251,2]
[360868848,1747090152567,-500.0,0.00011251,2]
[360868849,1747090152607,-500.0,0.00011251,2]
[360868850,1747090152649,-500.0,0.00011251,2]
[360868851,1747090152687,-396.80089943,0.00011251,2]
[360868852,1747090152720,-500.0,0.00011251,2]
[360868853,1747090152763,-500.0,0.00011251,2]
[360868854,1747090152798,-500.0,0.00011251,2]
[360868855,1747090152835,-500.0,0.00011251,2]
[360868856,1747090152872,-500.0,0.00011251,2]
[360868857,1747090152906,-500.0,0.00011251,2]
[360868858,1747090152941,-500.0,0.00011251,2]
[360868859,1747090152974,-602.42095618,0.00011251,2]
[360868860,1747090153009,-500.0,0.00011251,2]
[360868861,1747090153040,-215.95022916,0.00011251,2]
[360868862,1747090153073,-47056.84993552,0.00011252,2]
[360868863,1747090153104,-23994.1523927,0.00011253,2]
[360868864,1747090153136,-7000.0,0.00011999,4]
[360868865,1747090153169,-151.0,0.0001222,2]
[360868866,1747090153203,-18813.40747765,0.00012228,2]
[360868870,1747090157518,152.35007314,5.5e-07,2]
[360868872,1747090161127,-644.75623221,0.00012228,2]
[360868873,1747090166120,-615.52960258,0.00012228,2]
[360868914,1747090232884,-259.59375836,0.0001222,2]
[360868917,1747090232894,-1416.745372,0.00012222,2]
[360868919,1747090232904,-300.0,0.00012227,2]
[360868922,1747090232914,-300.0,0.00012227,2]
[360868927,1747090232923,-300.0,0.00012227,2]
[360868929,1747090232937,-1200.0,0.00012227,2]
[360868933,1747090232947,-12719.48645018,0.00012228,2]
[360868935,1747090232956,-313.53,0.00012329,2]
[360868937,1747090232966,-419.15,0.00012329,2]
[360868940,1747090232975,-349.29,0.00012329,2]
[360868942,1747090232984,-291.08,0.00012329,2]
[360868945,1747090232996,-242.56,0.00012329,2]
[360868948,1747090233006,-202.14,0.00012329,2]
[360868951,1747090233015,-168.45,0.00012329,2]
[360868953,1747090233024,-842.25,0.00012329,2]
[360868956,1747090233035,-4239.20742809,0.000129,2]